bitfinex/quotes_BTCUSD_20241028
["timestamp","ask_amount","ask_price","bid_price","bid_amount"]
[1730112559085,0.15033701,68725.0,68724.0,0.84943]
[1730112559308,0.14933701,68725.0,68724.0,0.84943]
[1730112559752,0.14933701,68725.0,68724.0,0.67603]
[1730112560395,0.00383001,68725.0,68724.0,0.67603]
[1730112560596,0.00383001,68725.0,68724.0,0.59903]
[1730112560803,0.14933701,68725.0,68724.0,0.59903]
[1730112561418,0.00383001,68725.0,68724.0,0.59903]
[1730112561656,0.14933701,68725.0,68724.0,0.59903]
[1730112561859,0.00383001,68725.0,68724.0,0.59903]
[1730112562736,0.14933701,68725.0,68724.0,0.59903]
[1730112563818,0.00383001,68725.0,68724.0,0.59903]
[1730112564093,0.14933701,68725.0,68724.0,0.59903]
[1730112564516,0.00383001,68725.0,68724.0,0.59703]
[1730112564719,0.00383001,68725.0,68724.0,0.744539]
[1730112564933,0.00383001,68725.0,68724.0,0.91554412]
[1730112565158,0.00383001,68725.0,68724.0,0.91821248]
[1730112565398,0.00383001,68725.0,68724.0,1.10601248]
[1730112565601,0.00383001,68725.0,68724.0,1.18611248]
[1730112566693,0.00383001,68725.0,68724.0,1.18811248]
[1730112567123,0.00383001,68725.0,68724.0,1.18611248]
[1730112567353,0.00383001,68725.0,68724.0,1.1861118]
[1730112567788,0.00483001,68725.0,68724.0,1.18411184]
[1730112567990,0.00583001,68725.0,68724.0,1.18611184]
[1730112569551,0.00583001,68725.0,68724.0,1.18611225]
[1730112574337,0.00583001,68725.0,68724.0,1.19358789]
[1730112574919,0.00583001,68725.0,68724.0,1.18411225]
[1730112575125,0.00583001,68725.0,68724.0,1.19158791]
[1730112577386,0.00583001,68725.0,68724.0,1.19358791]
[1730112578159,0.00583001,68725.0,68724.0,1.19158791]
[1730112578379,0.00583001,68725.0,68724.0,1.19358791]
[1730112578622,0.00583001,68725.0,68724.0,1.13478188]
[1730112578847,0.00583001,68725.0,68724.0,1.13278188]
[1730112579045,0.00583001,68725.0,68724.0,1.13478188]
[1730112579299,0.00583001,68725.0,68724.0,1.13278188]
[1730112581681,0.00583001,68725.0,68724.0,1.13478188]
[1730112581903,0.00583001,68725.0,68724.0,1.13278188]
[1730112583688,0.00583001,68725.0,68724.0,1.13478188]
[1730112584371,0.00587001,68725.0,68724.0,1.13478188]
[1730112585454,0.00587001,68725.0,68724.0,1.12063809]
[1730112586347,0.00487001,68725.0,68724.0,1.13280576]
[1730112586759,0.00487001,68725.0,68724.0,1.13380467]
[1730112586760,0.00587001,68725.0,68724.0,1.13380467]
[1730112587346,0.00487001,68725.0,68724.0,1.13180467]
[1730112587554,0.00587001,68725.0,68724.0,1.13480467]
[1730112587860,0.00587001,68725.0,68724.0,1.14116553]
[1730112588264,0.00687001,68725.0,68724.0,1.14416553]
[1730112588424,0.00587001,68725.0,68724.0,1.1540612]
[1730112589206,0.00687001,68725.0,68724.0,1.14416553]
[1730112589409,0.00687001,68725.0,68724.0,1.15406129]
[1730112589596,0.00587001,68725.0,68724.0,1.15406129]
[1730112589733,0.00687001,68725.0,68724.0,1.15506129]
[1730112590604,0.00687001,68725.0,68724.0,1.15506494]
[1730112594620,0.00687001,68725.0,68724.0,1.1550696]
[1730112595853,0.00687001,68725.0,68724.0,1.0769696]
[1730112597898,0.00687001,68725.0,68724.0,1.0749696]
[1730112598499,0.00687001,68725.0,68724.0,1.07497767]
[1730112598655,0.00687001,68725.0,68724.0,1.07697767]
[1730112599070,0.00587001,68725.0,68724.0,1.07397767]
[1730112599524,0.00687001,68725.0,68724.0,1.07497767]
[1730112599742,0.00687001,68725.0,68724.0,1.07697767]
[1730112599953,0.00487001,68725.0,68724.0,0.78597858]
[1730112600273,0.00587001,68725.0,68724.0,0.90117767]
[1730112600484,0.00487001,68725.0,68724.0,0.89081211]
[1730112600637,0.00487001,68725.0,68724.0,0.88781211]
[1730112601060,0.00587001,68725.0,68724.0,0.89081211]
[1730112601264,0.00587001,68725.0,68724.0,0.89081048]
[1730112601624,0.00587001,68725.0,68724.0,0.89080998]
[1730112601842,0.00687001,68725.0,68724.0,0.89180749]
[1730112604914,0.00687001,68725.0,68724.0,0.87963717]
[1730112605148,0.00687001,68725.0,68724.0,0.89179429]
[1730112605994,0.00687001,68725.0,68724.0,0.88979429]
[1730112606426,0.00687001,68725.0,68724.0,0.89179429]
[1730112606642,0.00687001,68725.0,68724.0,0.88979429]
[1730112607300,0.00687001,68725.0,68724.0,0.89179429]
[1730112608786,0.00687001,68725.0,68724.0,0.88090152]
[1730112609007,0.00687001,68725.0,68724.0,0.89179284]
[1730112610354,0.00687001,68725.0,68724.0,0.93534686]
[1730112611019,0.00687001,68725.0,68724.0,0.93535041]
[1730112612274,0.00687001,68725.0,68724.0,0.92786457]
[1730112612491,0.00687001,68725.0,68724.0,0.92445786]
[1730112613338,0.00687001,68725.0,68724.0,0.92645786]
[1730112613552,0.00687001,68725.0,68724.0,0.93535617]
[1730112614705,0.00687001,68725.0,68724.0,0.91229211]
[1730112614922,0.00687001,68725.0,68724.0,0.93535931]
[1730112615133,0.00687001,68725.0,68724.0,0.93538764]
[1730112623155,0.00687001,68725.0,68724.0,0.82295436]
[1730112623366,0.00687001,68725.0,68724.0,0.93515345]
[1730112624689,0.08937001,68725.0,68724.0,0.78962928]
[1730112625622,0.08937001,68725.0,68724.0,0.74606212]
[1730112625849,0.08937001,68725.0,68724.0,0.89157112]
[1730112626056,0.08937001,68725.0,68724.0,0.8915749]
[1730112626311,0.08937001,68725.0,68724.0,0.93514206]
[1730112626527,0.08937001,68725.0,68724.0,0.91207106]
[1730112626752,0.08937001,68725.0,68724.0,0.93514183]
[1730112626961,0.08937001,68725.0,68724.0,0.93314183]
[1730112629543,0.08937001,68725.0,68724.0,0.93315341]
[1730112629756,0.08937001,68725.0,68724.0,0.93515341]
[1730112631081,0.08937001,68725.0,68724.0,0.93315341]
[1730112631323,0.08937001,68725.0,68724.0,0.93515341]
[1730112631540,0.09445233,68725.0,68724.0,0.93515341]
[1730112632675,0.09445233,68725.0,68724.0,0.93315341]
[1730112633312,0.09445233,68725.0,68724.0,0.88957467]
[1730112633742,0.09445233,68725.0,68724.0,0.8786782]
[1730112633946,0.09445233,68725.0,68724.0,0.88957393]
[1730112634368,0.09445233,68725.0,68724.0,0.89157393]
[1730112634810,0.08937001,68725.0,68724.0,0.89157393]
[1730112635033,0.00687001,68725.0,68724.0,0.89157393]
[1730112635249,0.01195048,68725.0,68724.0,0.89157393]
[1730112635900,0.01195048,68725.0,68724.0,0.88957393]
[1730112636120,0.00687001,68725.0,68724.0,0.88957393]
[1730112636358,0.01195048,68725.0,68724.0,0.88957393]
[1730112636784,0.01195048,68725.0,68724.0,0.89157393]
[1730112637213,0.01195048,68725.0,68724.0,0.93516552]
[1730112637449,0.01195048,68725.0,68724.0,0.89157393]
[1730112637694,0.01195048,68725.0,68724.0,0.93316827]
[1730112638799,0.01195048,68725.0,68724.0,0.93516827]
[1730112639020,0.01195048,68725.0,68724.0,0.93316827]
[1730112639244,0.01195048,68725.0,68724.0,0.93517055]
[1730112639465,0.01195048,68725.0,68724.0,0.93317055]
[1730112640364,0.01195048,68725.0,68724.0,0.82097146]
[1730112640790,0.01195048,68725.0,68724.0,0.93317055]
[1730112641212,0.01195048,68725.0,68724.0,0.93517055]
[1730112641428,0.01195048,68725.0,68724.0,0.93517383]
[1730112641899,0.01195048,68725.0,68724.0,0.93317383]
[1730112643201,0.01195048,68725.0,68724.0,0.93517383]
[1730112643403,0.01195048,68725.0,68724.0,0.93317383]
[1730112643840,0.01195048,68725.0,68724.0,0.93517383]
[1730112644059,0.01195048,68725.0,68724.0,0.93317383]
[1730112644278,0.00687001,68725.0,68724.0,0.93317383]
[1730112644746,0.01195087,68725.0,68724.0,0.93317383]
[1730112645197,0.01195087,68725.0,68724.0,0.93318283]
[1730112646954,0.01195087,68725.0,68724.0,0.78967383]
[1730112647185,0.40365787,68725.0,68724.0,0.60797654]
[1730112647403,0.55416168,68725.0,68724.0,0.60048029]
[1730112647621,0.55416168,68725.0,68724.0,0.59579581]
[1730112648065,0.55316168,68725.0,68724.0,0.59479581]
[1730112648287,0.55116168,68725.0,68724.0,0.59179581]
[1730112648535,0.55116168,68725.0,68724.0,0.59279581]
[1730112648755,0.55116168,68725.0,68724.0,0.58779581]
[1730112649440,0.55116168,68725.0,68724.0,0.58679581]
[1730112650301,0.55716168,68725.0,68724.0,0.58679581]
[1730112650733,0.56416168,68725.0,68724.0,0.58479581]
[1730112652845,0.56416168,68725.0,68724.0,0.58679581]
[1730112654812,0.55716168,68725.0,68724.0,0.58679581]
[1730112655073,0.55716168,68725.0,68724.0,0.58479581]
[1730112655282,0.56216168,68725.0,68724.0,0.58479581]
[1730112655705,0.55116168,68725.0,68724.0,0.58479581]
[1730112655926,0.55116168,68725.0,68724.0,0.58679581]
[1730112656564,0.55116168,68725.0,68724.0,0.58479581]
[1730112656980,0.56116168,68725.0,68724.0,0.58479581]
[1730112657430,0.55616168,68725.0,68724.0,0.58479581]
[1730112657669,0.56116168,68725.0,68724.0,0.58479581]
[1730112658998,0.56116168,68725.0,68724.0,0.59179581]
[1730112659227,0.56116168,68725.0,68724.0,0.58979581]
[1730112660379,0.55897767,68725.0,68724.0,0.58979581]
[1730112660600,0.56116151,68725.0,68724.0,0.58979581]
[1730112662414,0.56116151,68725.0,68724.0,0.59179581]
[1730112666486,0.56116151,68725.0,68724.0,0.58979581]
[1730112668199,0.56116151,68725.0,68724.0,0.59179581]
[1730112669494,0.56116151,68725.0,68724.0,0.58479581]
[1730112669703,0.56116151,68725.0,68724.0,0.58179581]
[1730112669914,0.56116151,68725.0,68724.0,0.57979581]
[1730112673086,0.56116151,68725.0,68724.0,0.57239581]
[1730112674243,0.6733606,68725.0,68724.0,0.57239581]
[1730112676745,0.6733606,68725.0,68724.0,0.57439581]
[1730112678051,0.56116151,68725.0,68724.0,0.57939581]
[1730112678278,0.16945451,68725.0,68724.0,0.58439581]
[1730112678508,0.0189507,68725.0,68724.0,0.73958791]
[1730112678766,0.0189507,68725.0,68724.0,0.82108791]
[1730112678968,0.01386984,68725.0,68724.0,0.82858094]
[1730112679171,0.00886984,68725.0,68724.0,0.82858094]
[1730112679381,0.00886984,68725.0,68724.0,0.83108791]
[1730112679622,0.01186984,68725.0,68724.0,0.83857744]
[1730112680085,0.00386984,68725.0,68724.0,0.83657744]
[1730112680293,0.00386984,68725.0,68724.0,0.83857744]
[1730112680511,0.00386984,68725.0,68724.0,0.83008791]
[1730112680978,0.00386984,68725.0,68724.0,0.83208791]
[1730112681203,0.00386984,68725.0,68724.0,0.84157477]
[1730112681431,0.00386984,68725.0,68724.0,0.83408791]
[1730112682977,0.00892826,68725.0,68724.0,0.75258791]
[1730112685636,0.00892826,68725.0,68724.0,0.75157952]
[1730112685859,0.00992826,68725.0,68724.0,0.75557952]
[1730112686316,0.00992826,68725.0,68724.0,0.60407052]
[1730112686317,0.00892826,68725.0,68724.0,0.60407052]
[1730112686532,0.00892826,68725.0,68724.0,0.74957952]
[1730112686741,0.01092826,68725.0,68724.0,0.75957952]
[1730112686952,0.00586984,68725.0,68724.0,0.75357952]
[1730112687382,0.00686984,68725.0,68724.0,0.75957952]
[1730112687842,0.00686984,68725.0,68724.0,0.61407052]
[1730112688251,0.01192583,68725.0,68724.0,0.61407052]
[1730112688709,0.00686984,68725.0,68724.0,0.60907052]
[1730112688922,0.15743331,68725.0,68724.0,0.60407052]
[1730112689536,0.15743331,68725.0,68724.0,0.59939581]
[1730112689740,0.15743331,68725.0,68724.0,0.60406928]
[1730112689888,0.15743331,68725.0,68724.0,0.60206928]
[1730112690093,0.15743331,68725.0,68724.0,0.60406928]
[1730112690699,0.15743331,68725.0,68724.0,0.59939581]
[1730112691301,0.15743331,68725.0,68724.0,0.59439581]
[1730112691826,0.15743331,68725.0,68724.0,0.59239581]
[1730112692038,0.15743331,68725.0,68724.0,0.59439581]
[1730112693770,0.15743331,68725.0,68724.0,0.59239581]
[1730112695317,0.01192631,68725.0,68724.0,0.59239581]
[1730112704750,0.15743331,68725.0,68724.0,0.59239581]
[1730112705807,0.15743331,68725.0,68724.0,0.58739581]
[1730112706426,0.15743331,68725.0,68724.0,0.59239581]
[1730112709391,0.15743331,68725.0,68724.0,0.59439581]
[1730112710967,0.01192631,68725.0,68724.0,0.59439581]
[1730112712095,0.01192631,68725.0,68724.0,0.59907628]
[1730112716202,0.15743331,68725.0,68724.0,0.59907628]
[1730112716695,0.01192631,68725.0,68724.0,0.59907628]
[1730112716904,0.15743331,68725.0,68724.0,0.59907628]
[1730112717106,0.01192631,68725.0,68724.0,0.59907628]
[1730112719043,0.15743331,68725.0,68724.0,0.59907628]
[1730112720125,0.15743331,68725.0,68724.0,0.59439581]
[1730112720330,0.15743331,68725.0,68724.0,0.59907973]
[1730112720736,0.01192631,68725.0,68724.0,0.59907973]
[1730112721984,0.15743331,68725.0,68724.0,0.59907973]
[1730112724378,0.15743331,68725.0,68724.0,0.59407973]
[1730112730663,0.15743331,68725.0,68724.0,0.59408155]
[1730112733774,0.15743331,68725.0,68724.0,0.58939581]
[1730112735311,0.40173331,68725.0,68724.0,0.58239581]
[1730112735511,0.40173331,68725.0,68724.0,0.57739581]
[1730112735512,0.74888161,68725.0,68724.0,0.57739581]
[1730112735738,0.55223712,68725.0,68724.0,0.57739581]
[1730112735938,0.66145979,68725.0,68724.0,0.57739581]
[1730112736205,0.55223712,68725.0,68724.0,0.57739581]
[1730112736407,0.55123712,68725.0,68724.0,0.57339581]
[1730112736626,0.63663042,68725.0,68724.0,0.56939581]
[1730112736833,0.54923712,68725.0,68724.0,0.56939581]
[1730112737092,0.54923712,68725.0,68724.0,0.57139581]
[1730112737284,0.54923712,68725.0,68724.0,0.56939581]
[1730112737520,0.64161306,68725.0,68724.0,0.56939581]
[1730112737731,0.64161306,68725.0,68724.0,0.57239581]
[1730112738188,0.55423712,68725.0,68724.0,0.57239581]
[1730112739252,0.62475118,68725.0,68724.0,0.57239581]
[1730112740927,0.73695027,68725.0,68724.0,0.57239581]
[1730112741371,0.62475118,68725.0,68724.0,0.57239581]
[1730112741587,0.62475118,68725.0,68724.0,0.57439581]
[1730112742028,0.73695027,68725.0,68724.0,0.57439581]
[1730112742505,0.73695027,68725.0,68724.0,0.57239581]
[1730112742908,0.73695027,68725.0,68724.0,0.57439581]
[1730112743126,0.73695027,68725.0,68724.0,0.57239581]
[1730112743341,0.67143621,68725.0,68724.0,0.57239581]
[1730112744309,0.75881215,68725.0,68724.0,0.57239581]
[1730112745546,0.64654475,68725.0,68724.0,0.57239581]
[1730112745977,0.55923712,68725.0,68724.0,0.57239581]
[1730112747283,0.62470781,68725.0,68724.0,0.57239581]
[1730112747514,0.62470699,68725.0,68724.0,0.57239581]
[1730112747736,0.55923712,68725.0,68724.0,0.57239581]
[1730112748593,0.62470242,68725.0,68724.0,0.57239581]
[1730112749727,0.55923712,68725.0,68724.0,0.57239581]
[1730112749962,0.55923712,68725.0,68724.0,0.57439581]
[1730112750197,0.60287698,68725.0,68724.0,0.57439581]
[1730112750838,0.60287698,68725.0,68724.0,0.57239581]
[1730112751055,0.62470242,68725.0,68724.0,0.56739581]
[1730112751279,0.62470242,68725.0,68724.0,0.57239581]
[1730112751280,0.55923712,68725.0,68724.0,0.57239581]
[1730112751774,0.68223712,68725.0,68724.0,0.56239581]
[1730112751999,0.395537,68711.0,68710.0,0.011646]
[1730112752224,0.395537,68711.0,68710.0,0.141646]
[1730112752225,0.9086399,68711.0,68710.0,0.141646]
[1730112752451,0.91367029,68711.0,68710.0,0.141646]
[1730112752694,1.01367029,68711.0,68710.0,0.136646]
[1730112752902,1.01367029,68711.0,68710.0,0.573256]
[1730112753121,1.01367029,68711.0,68710.0,0.578256]
[1730112753346,1.01567029,68711.0,68710.0,0.588256]
[1730112753567,1.01567029,68711.0,68710.0,0.583256]
[1730112753568,1.01467029,68711.0,68710.0,0.583256]
[1730112753789,1.01367029,68711.0,68710.0,0.578256]
[1730112754922,0.9014712,68711.0,68710.0,0.578256]
[1730112755152,0.9084712,68711.0,68710.0,0.578256]
[1730112755629,0.9144712,68711.0,68710.0,0.578256]
[1730112763299,0.9144712,68711.0,68710.0,1.578256]
[1730112766104,0.9144712,68711.0,68710.0,1.568256]
[1730112766335,0.98103981,68711.0,68710.0,1.568256]
[1730112766560,1.00282412,68711.0,68710.0,1.568256]
[1730112766969,0.9374712,68711.0,68710.0,1.568256]
[1730112767823,0.9374712,68711.0,68710.0,1.448256]
[1730112768038,0.99682412,68711.0,68710.0,1.448256]
[1730112768263,0.9314712,68711.0,68710.0,1.448256]
[1730112768487,1.00382412,68711.0,68710.0,1.448256]
[1730112768709,1.01782412,68711.0,68710.0,1.448256]
[1730112769150,0.9524712,68711.0,68710.0,1.448256]
[1730112769382,0.9384712,68711.0,68710.0,1.448256]
[1730112769626,0.9524712,68711.0,68710.0,1.448256]
[1730112771642,0.97527684,68711.0,68710.0,1.448256]
[1730112771861,1.01880374,68711.0,68710.0,1.448256]
[1730112772367,0.97527684,68711.0,68710.0,1.448256]
[1730112772582,1.01880374,68711.0,68710.0,1.448256]
[1730112773339,0.97527684,68711.0,68710.0,1.448256]
[1730112773750,1.01880156,68711.0,68710.0,1.448256]
[1730112774719,0.97527684,68711.0,68710.0,1.448256]
[1730112775387,1.01880156,68711.0,68710.0,1.448256]
[1730112775606,0.99599592,68711.0,68710.0,1.448256]
[1730112776518,0.99599592,68711.0,68710.0,1.518256]
[1730112777179,0.99599592,68711.0,68710.0,1.513256]
[1730112778750,1.0188014,68711.0,68710.0,1.513256]
[1730112779161,1.0188014,68711.0,68710.0,1.514079]
[1730112779828,0.97527668,68711.0,68710.0,1.514079]
[1730112780326,1.0406296,68711.0,68710.0,1.514079]
[1730112781182,0.97527668,68711.0,68710.0,1.514079]
[1730112781415,1.04061035,68711.0,68710.0,1.514079]
[1730112782253,0.97527668,68711.0,68710.0,1.514079]
[1730112786736,1.06238824,68711.0,68710.0,1.514079]
[1730112787407,0.97527668,68711.0,68710.0,1.514079]
[1730112788512,1.08416613,68711.0,68710.0,1.514079]
[1730112788750,1.12578049,68711.0,68710.0,1.514079]
[1730112788957,1.08416613,68711.0,68710.0,1.5367441]
[1730112789174,0.97527668,68711.0,68710.0,1.5367441]
[1730112789598,1.08422616,68711.0,68710.0,1.5367441]
[1730112789811,0.97527668,68711.0,68710.0,1.5367441]
[1730112790028,1.08422613,68711.0,68710.0,1.5367441]
[1730112790249,0.97527668,68711.0,68710.0,1.5367441]
[1730112790484,0.97692268,68711.0,68710.0,1.5367441]
[1730112790718,1.08912177,68711.0,68710.0,1.5367441]
[1730112790968,0.81368942,68711.0,68710.0,1.5367441]
[1730112791184,0.83872177,68711.0,68710.0,1.5367441]
[1730112791894,0.81572177,68711.0,68710.0,1.5367441]
[1730112792539,0.79295629,68711.0,68710.0,1.5367441]
[1730112793175,0.86613207,68711.0,68710.0,1.5367441]
[1730112793596,0.79295629,68711.0,68710.0,1.5367441]
[1730112793815,0.77895629,68711.0,68710.0,1.5367441]
[1730112794261,0.79295629,68711.0,68710.0,1.5367441]
[1730112794470,0.77895629,68711.0,68710.0,1.5367441]
[1730112794688,0.76495629,68711.0,68710.0,1.5367441]
[1730112794920,0.77895629,68711.0,68710.0,1.5367441]
[1730112795165,0.90192601,68711.0,68710.0,1.5367441]
[1730112795390,1.16832601,68711.0,68710.0,1.5367441]
[1730112795931,1.05935629,68711.0,68710.0,1.5367441]
[1730112799717,1.19011996,68711.0,68710.0,1.5367441]
[1730112803238,1.08216141,68711.0,68710.0,1.5367441]
[1730112804160,1.08216141,68711.0,68710.0,1.4567441]
[1730112805712,1.05935629,68711.0,68710.0,1.4567441]
[1730112810503,1.08216178,68711.0,68710.0,1.4567441]
[1730112811136,1.22968713,68711.0,68710.0,1.4567441]
[1730112811824,1.35852847,68711.0,68710.0,1.4567441]
[1730112812259,1.22968713,68711.0,68710.0,1.4567441]
[1730112819610,4.32405313,68711.0,68710.0,1.4567441]
[1730112819839,3.87536069,68711.0,68710.0,1.4567441]
[1730112821664,3.87536069,68711.0,68710.0,1.2820961]
[1730112823017,0.96996269,68711.0,68710.0,1.2820961]
[1730112823232,4.87550669,68711.0,68710.0,1.2820961]
[1730112823899,4.00791669,68711.0,68710.0,1.2820961]
[1730112824343,4.1390373,68711.0,68710.0,1.2820961]
[1730112824789,4.10300931,68711.0,68710.0,1.2820961]
[1730112825488,3.8233044,68711.0,68710.0,1.2820961]
[1730112827353,3.71110531,68711.0,68710.0,1.2820961]
[1730112827574,3.8233044,68711.0,68710.0,1.2820961]
[1730112828460,3.7669284,68711.0,68710.0,1.2820961]
[1730112829593,3.65470793,68711.0,68710.0,1.2820961]
[1730112829809,3.80171312,68711.0,68710.0,1.2820961]
[1730112830036,3.91391221,68711.0,68710.0,1.2820961]
[1730112830481,3.52361569,68711.0,68710.0,1.1365561]
[1730112830757,3.5008102,68711.0,68710.0,1.1365561]
[1730112831184,3.4336892,68711.0,68710.0,1.1365561]
[1730112834856,3.45649594,68711.0,68710.0,1.1365561]
[1730112835530,4.71609994,68711.0,68710.0,1.1365561]
[1730112835740,4.86660375,68711.0,68710.0,1.1365561]
[1730112836477,4.72093575,68711.0,68710.0,1.1365561]
[1730112839635,4.68660375,68711.0,68710.0,1.1365561]
[1730112839804,3.59699375,68711.0,68710.0,1.1365561]
[1730112840258,3.59699375,68711.0,68710.0,0.9910161]
[1730112840259,3.44648994,68711.0,68710.0,0.9910161]
[1730112845122,1.00281094,68711.0,68710.0,0.9910161]
[1730112845442,1.05623603,68711.0,68710.0,0.9910161]
[1730112846112,0.98343603,68711.0,68710.0,0.9910161]
[1730112850596,0.96062929,68711.0,68710.0,0.9910161]
[1730112853474,0.96062929,68711.0,68710.0,1.0310161]
[1730112853475,0.7037572,68711.0,68710.0,1.0310161]
[1730112853701,0.81595629,68711.0,68710.0,1.0310161]
[1730112856589,0.7037572,68711.0,68710.0,1.0310161]
[1730112856821,0.81595629,68711.0,68710.0,1.0310161]
[1730112866222,0.7037572,68711.0,68710.0,1.0310161]
[1730112866458,0.6807572,68711.0,68710.0,1.3781161]
[1730112866687,0.6807572,68711.0,68710.0,1.3761161]
[1730112866906,0.78995622,68711.0,68710.0,1.3831161]
[1730112867127,0.78995622,68711.0,68710.0,1.3811161]
[1730112867382,0.77592038,68711.0,68710.0,1.3811161]
[1730112867585,0.78992038,68711.0,68710.0,1.3811161]
[1730112867809,0.79210502,68711.0,68710.0,1.3811161]
[1730112868024,0.56894184,68711.0,68710.0,1.3861161]
[1730112868231,0.18243803,68711.0,68710.0,1.3861161]
[1730112868685,0.16843803,68711.0,68710.0,1.3861161]
[1730112868897,0.17443803,68711.0,68710.0,1.3861161]
[1730112869324,0.15443803,68711.0,68710.0,1.3861161]
[1730112869539,0.15843803,68711.0,68710.0,1.3861161]
[1730112869747,0.15843803,68711.0,68710.0,1.3881161]
[1730112869961,0.16543803,68711.0,68710.0,1.3861161]
[1730112870600,0.16543803,68711.0,68710.0,1.3881161]
[1730112871018,0.15843803,68711.0,68710.0,1.3861161]
[1730112871249,0.15843803,68711.0,68710.0,1.8227261]
[1730112871457,0.16343803,68711.0,68710.0,1.8227261]
[1730112872747,0.16343803,68711.0,68710.0,1.8247261]
[1730112880817,0.16343803,68711.0,68710.0,1.8227261]
[1730112881276,0.16343803,68711.0,68710.0,1.8247261]
[1730112882153,0.16343803,68711.0,68710.0,1.8227261]
[1730112884712,0.16343803,68711.0,68710.0,1.8247261]
[1730112889332,0.16343803,68711.0,68710.0,1.7485261]
[1730112889549,0.31394184,68711.0,68710.0,1.5626261]
[1730112890012,0.31394184,68711.0,68710.0,1.5646261]
[1730112890727,0.31394184,68711.0,68710.0,1.5626261]
[1730112892472,0.35759168,68711.0,68710.0,1.5626261]
[1730112895469,0.3575971,68711.0,68710.0,1.5626261]
[1730112896330,0.3575971,68711.0,68710.0,1.5646261]
[1730112897427,0.3575971,68711.0,68710.0,1.5626261]
[1730112898521,0.31394184,68711.0,68710.0,1.5626261]
[1730112898748,0.35760163,68711.0,68710.0,1.5626261]
[1730112899838,0.46980072,68711.0,68710.0,1.5626261]
[1730112900244,0.46980174,68711.0,68710.0,1.5626261]
[1730112904004,0.46980458,68711.0,68710.0,1.5626261]
[1730112904663,0.42614093,68711.0,68710.0,1.5626261]
[1730112907769,0.42614093,68711.0,68710.0,1.5646261]
[1730112907996,0.31394184,68711.0,68710.0,1.5646261]
[1730112908711,0.56324184,68711.0,68710.0,1.5476261]
[1730112908948,0.77356914,68711.0,68710.0,1.5476261]
[1730112909164,0.79540096,68711.0,68710.0,1.4576261]
[1730112909386,0.79543266,68711.0,68710.0,1.4576261]
[1730112909632,0.68124184,68711.0,68710.0,1.4576261]
[1730112909866,0.67724184,68711.0,68710.0,1.4576261]
[1730112910091,0.68224184,68711.0,68710.0,1.4576261]
[1730112910313,0.69624184,68711.0,68710.0,1.4576261]
[1730112911475,0.69124184,68711.0,68710.0,1.4576261]
[1730112911917,0.70524184,68711.0,68710.0,1.4576261]
[1730112912150,0.69124184,68711.0,68710.0,1.4576261]
[1730112912382,0.7140477,68711.0,68710.0,1.4576261]
[1730112912600,0.7140477,68711.0,68710.0,1.4276261]
[1730112912601,0.7280477,68711.0,68710.0,1.4276261]
[1730112912825,1.5293257,68711.0,68710.0,1.4276261]
[1730112913056,0.7000477,68711.0,68710.0,1.4276261]
[1730112913295,0.84024679,68711.0,68710.0,1.4276261]
[1730112916642,1.09024679,68711.0,68710.0,1.4276261]
[1730112918770,0.9780477,68711.0,68710.0,1.4276261]
[1730112918991,0.84094679,68711.0,68710.0,1.4476261]
[1730112920953,0.7287477,68711.0,68710.0,1.4476261]
[1730112922939,0.7057477,68711.0,68710.0,1.4476261]
[1730112925130,0.7057477,68711.0,68710.0,1.5476261]
[1730112931966,0.81486436,68711.0,68710.0,1.5476261]
[1730112932215,0.81486436,68711.0,68710.0,1.60220534]
[1730112932424,0.64337925,68711.0,68710.0,1.5596261]
[1730112932663,0.64941729,68711.0,68710.0,1.5626261]
[1730112932899,0.64941729,68711.0,68710.0,1.7327261]
[1730112932900,0.18344568,68711.0,68710.0,1.7327261]
[1730112933132,0.22709079,68711.0,68710.0,1.7347261]
[1730112933356,0.18344568,68711.0,68710.0,1.8157261]
[1730112933574,0.16944568,68711.0,68710.0,1.8137261]
[1730112934017,0.17844568,68711.0,68710.0,1.8137261]
[1730112934468,0.16444568,68711.0,68710.0,1.8137261]
[1730112934927,0.17644568,68711.0,68710.0,1.8137261]
[1730112935163,0.16744568,68711.0,68710.0,1.8137261]
[1730112935347,0.15944568,68711.0,68710.0,1.8137261]
[1730112935602,0.16444568,68711.0,68710.0,1.8137261]
[1730112936716,0.01890868,68711.0,68710.0,1.8137261]
[1730112937149,0.01890868,68711.0,68710.0,1.8157261]
[1730112937365,0.01287064,68711.0,68710.0,1.8157261]
[1730112938255,0.01890868,68711.0,68710.0,1.8157261]
[1730112938482,0.01890868,68711.0,68710.0,1.8137261]
[1730112938749,0.01890868,68711.0,68710.0,1.9592651]
[1730112938963,0.01890868,68711.0,68710.0,1.8137261]
[1730112939181,0.01890868,68711.0,68710.0,1.97894441]
[1730112939182,0.01672404,68711.0,68710.0,1.97894441]
[1730112939406,0.010686,68711.0,68710.0,1.97894441]
[1730112939825,0.005686,68711.0,68710.0,1.97894441]
[1730112940250,0.001686,68711.0,68710.0,1.97894441]
[1730112940466,0.002686,68711.0,68710.0,1.97994441]
[1730112940674,0.002686,68711.0,68710.0,1.9752651]
[1730112940899,0.002686,68711.0,68710.0,1.97994088]
[1730112941355,0.003686,68711.0,68710.0,1.98194088]
[1730112941581,0.003686,68711.0,68710.0,1.9772651]
[1730112942279,0.003686,68711.0,68710.0,1.9839389]
[1730112942493,0.003686,68711.0,68710.0,1.9792651]
[1730112943193,0.003686,68711.0,68710.0,1.9772651]
[1730112943405,0.003686,68711.0,68710.0,1.9792651]
[1730112948007,0.003686,68711.0,68710.0,1.98393706]
[1730112949140,0.003686,68711.0,68710.0,1.9792651]
[1730112950333,0.003686,68711.0,68710.0,1.9772651]
[1730112951428,0.003686,68711.0,68710.0,1.98192641]
[1730112951637,0.003686,68711.0,68710.0,1.98192649]
[1730112951856,0.003686,68711.0,68710.0,1.9772651]
[1730112952070,0.003686,68711.0,68710.0,1.98192629]
[1730112953115,0.003686,68711.0,68710.0,1.98392655]
[1730112953531,0.003686,68711.0,68710.0,1.98192655]
[1730112954200,0.003686,68711.0,68710.0,1.98392655]
[1730112956533,0.003686,68711.0,68710.0,1.98192655]
[1730112957103,0.003686,68711.0,68710.0,1.9772651]
[1730112957314,0.003686,68711.0,68710.0,1.9819285]
[1730112957745,0.003686,68711.0,68710.0,1.9839285]
[1730112958601,0.002686,68711.0,68710.0,1.9819285]
[1730112959017,0.003686,68711.0,68710.0,2.09612759]
[1730112959436,0.002686,68711.0,68710.0,2.09512759]
[1730112959680,0.003686,68711.0,68710.0,2.09612759]
[1730112960133,0.003686,68711.0,68710.0,1.7573895]
[1730112960342,0.003686,68711.0,68710.0,1.7533895]
[1730112960343,0.002686,68711.0,68710.0,1.7533895]
[1730112960766,0.003686,68711.0,68710.0,1.75739449]
[1730112961643,0.003686,68711.0,68710.0,1.90093349]
[1730112966504,0.003686,68711.0,68710.0,1.91932498]
[1730112968035,0.003686,68711.0,68710.0,1.90841676]
[1730112968242,0.003686,68711.0,68710.0,1.91933133]
[1730112971662,0.003686,68711.0,68710.0,1.91935107]
[1730112975626,0.003686,68711.0,68710.0,1.74925117]